fUSD/lending_fUSD_20240419
["ID","MTS","AMOUNT","RATE_DAILY","PERIOD"]
[322916661,1713497898482,643.44065759,0.00015503,2]
[322916662,1713497898841,17267.3205257,0.00015503,2]
[322916663,1713497969499,179.3626246,0.00022066,30]
[322916664,1713497981339,14389.43377142,0.00015503,2]
[322916665,1713498087808,200.0,0.00015361,2]
[322916666,1713498131948,152.36,0.0001611,15]
[322916667,1713498199528,643.05640837,0.00015502,2]
[322916668,1713498220502,572.41,0.00015362,2]
[322916669,1713498249613,-150.0,0.00015503,2]
[322916670,1713498280497,448.39,0.00013479,2]
[322916671,1713498290869,181.69,0.00015501,2]
[322916672,1713498292422,155.0,0.00016436,30]
[322916673,1713498299674,150.594003,0.00015,120]
[322916674,1713498308639,213.17984536,0.00016436,30]
[322916675,1713498508724,370.51,0.00015359,2]
[322916677,1713498631765,-515.5084505,0.00015508,2]
[322916678,1713498631774,-104.4915495,0.00015509,2]
[322916679,1713498631825,-45.5084505,0.00015509,2]
[322916680,1713498631837,-1345.39095849,0.00015613,2]
[322916681,1713498631850,-552.08555548,0.00015613,2]
[322916682,1713498631867,-1262.60927417,0.00015613,2]
[322916683,1713498631899,-1535.64721051,0.00015613,2]
[322916705,1713498637646,-9693.70077277,0.00015613,2]
[322916706,1713498637656,-3180.18036638,0.00015614,2]
[322916707,1713498637666,-448.39,0.00015743,2]
[322916708,1713498637675,-181.69,0.00015771,2]
[322916709,1713498637684,-1250.0,0.00016,2]
[322916710,1713498637693,-155.0,0.00016,2]
[322916711,1713498637702,-181.69,0.0001604,2]
[322916712,1713498637711,-499.99,0.00016052,2]
[322916713,1713498637720,-1139.9205,0.00016238,2]
[322916714,1713498637729,-29295.40639781,0.00016249,2]
[322916715,1713498637738,-6660.6332,0.0001625,2]
[322916716,1713498637747,-676.85714,0.0001627,2]
[322916717,1713498637756,-675.0,0.000163,2]
[322916718,1713498637765,-150.0,0.000163,2]
[322916719,1713498637774,-150.0,0.000163,2]
[322916720,1713498637783,-302.16,0.000163,2]
[322916721,1713498637792,-433.08,0.000163,2]
[322916722,1713498637801,-316.62,0.000163,2]
[322916723,1713498637810,-162.48,0.000163,2]
[322916724,1713498637820,-1000.0,0.00016306,2]
[322916725,1713498637828,-500.0,0.00016306,2]
[322916726,1713498637838,-200.0,0.00016307,2]
[322916727,1713498637846,-1000.0,0.00016307,2]
[322916728,1713498637855,-200.0,0.00016307,2]
[322916729,1713498637864,-509.175221,0.00016307,2]
[322916730,1713498637875,-500.0,0.00016307,2]
[322916731,1713498637884,-200.0,0.00016307,2]
[322916732,1713498637894,-181.69,0.00016309,2]
[322916733,1713498637904,-770.7583,0.00016329,2]
[322916734,1713498637913,-1000.0,0.00016329,2]
[322916735,1713498637924,-6004.18559901,0.00016337,2]
[322916736,1713498637933,-181.04995257,0.00016338,2]
[322916737,1713498637943,-21312.06926427,0.00016338,2]
[322916738,1713498637952,-160.10007959,0.00016338,2]
[322916739,1713498637962,-171.6550686,0.00016338,2]
[322916740,1713498637971,-157.82502492,0.00016338,2]
[322916741,1713498637981,-150.0,0.00016338,2]
[322916742,1713498637990,-1189.16299961,0.00016338,2]
[322916743,1713498638000,-356.28725382,0.00016338,2]
[322916744,1713498638009,-4605.52036207,0.00016383,2]
[322916745,1713498638018,-160.28,0.0001639,2]
[322916746,1713498638027,-201.15025214,0.00016398,2]
[322916747,1713498638036,-181.60239483,0.00016399,2]
[322916748,1713498638045,-164.90576658,0.00016399,2]
[322916749,1713498638055,-679.33917279,0.00016399,2]
[322916750,1713498638065,-618.74747092,0.00016399,2]
[322916751,1713498638075,-510.28874364,0.00016399,2]
[322916752,1713498638085,-4332.82844793,0.00016399,2]
[322916753,1713498638094,-200.65715321,0.00016399,2]
[322916754,1713498638104,-1302.07511691,0.00016399,2]
[322916755,1713498638113,-252.97543323,0.00016399,2]
[322916756,1713498638124,-378.94968735,0.00016399,2]
[322916757,1713498638133,-155.0,0.00016399,2]
[322916758,1713498638143,-1164.53070172,0.00016399,5]
[322916759,1713498638151,-2054.0,0.000164,2]
[322916760,1713498638160,-482.0,0.000164,2]
[322916761,1713498638170,-704904.57039745,0.000164,3]
[322916762,1713498638208,-200338.676494,0.000164,3]
[322916790,1713498643495,-1067.81353758,0.000164,3]
[322916791,1713498643506,-455.24917089,0.000164,3]
[322916792,1713498643606,-1855.38965769,0.000164,3]
[322916795,1713498645572,-3431.15037639,0.000164,3]
[322916796,1713498645628,-1909.74,0.000164,3]
[322916797,1713498645738,-1585.55704767,0.000164,3]
[322916798,1713498645750,-959.66047797,0.000164,3]
[322916799,1713498645761,-360.08234564,0.000164,3]
[322916800,1713498645773,-1237.64034,0.000164,3]
[322916801,1713498656372,152.36,0.0001611,15]
[322916802,1713498676091,1391.28911851,0.000121,30]
[322916804,1713498742472,445.48,0.00013519,2]
[322916807,1713498818644,542.07,0.00015391,2]
[322916808,1713498828123,500.0,0.00015391,2]
[322916809,1713498854099,16312.45,0.00015382,2]
[322916810,1713498863413,1038.32348949,0.00012,30]
[322916811,1713498882631,3650.068728,0.00022,28]
[322916812,1713498911653,184.91,0.00015382,2]
[322916813,1713498988535,1802.057409,0.00018,15]
[322916814,1713498996403,509.29,0.00015382,2]
[322916815,1713499020183,1099.83,0.00015374,2]
[322916816,1713499132295,5350.0,0.00018,10]
[322916817,1713499135255,5350.0,0.00018,11]
[322916818,1713499138563,5350.0,0.00018,12]
[322916819,1713499141496,5350.0,0.00018,13]
[322916820,1713499146627,5350.0,0.00018,14]
[322916821,1713499218033,5350.0,0.00018,18]
[322916822,1713499220472,5350.0,0.00018,19]
[322916823,1713499224007,423.2,0.00013464,2]
[322916824,1713499233557,2546.39797305,0.000135,2]
[322916825,1713499261657,5350.0,0.00018,26]
[322916826,1713499281568,365.64635943,0.000135,2]
[322916827,1713499281629,179.58257449,0.000135,2]
[322916828,1713499286757,566.34,0.00015374,2]
[322916829,1713499294375,365.64635943,0.000135,2]
[322916830,1713499297603,179.58257449,0.000135,2]
[322916831,1713499309474,206.28183044,0.000135,2]
[322916832,1713499317540,179.58257449,0.000135,2]
[322916833,1713499333693,179.58257449,0.000135,2]
[322916834,1713499351255,5350.0,0.00018,16]
[322916835,1713499357540,179.58257449,0.000135,2]
[322916836,1713499375537,179.58257449,0.000135,2]
[322916837,1713499390709,208.83,0.00015492,2]
[322916838,1713499394621,160.84391648,0.000135,2]
[322916839,1713499402212,942.72120691,0.000135,2]
[322916840,1713499420238,944.62177926,0.000135,2]
[322916841,1713499444327,152.36,0.0001611,15]
[322916842,1713499461651,515.5084505,0.00015503,2]
[322916843,1713499466155,515.5084505,0.00015503,2]
[322916844,1713499496696,1035.97516962,0.00015503,2]
[322916845,1713499512046,7496.89499491,0.00015503,2]
[322916846,1713499514733,1038.11217819,0.00015503,2]
[322916847,1713499535752,19431.09350024,0.00015503,2]
[322916848,1713499585174,515.5084505,0.00015503,2]
[322916849,1713499590517,7496.89499491,0.00015503,2]
[322916850,1713499652593,1886.92,0.00015503,2]
[322916851,1713499657669,515.5084505,0.00015503,2]
[322916852,1713499675036,7496.89499491,0.00015503,2]
[322916853,1713499737861,1325.14652014,0.00015503,2]
[322916854,1713499747537,7496.89499491,0.00015503,2]
[322916855,1713499818039,7496.89499491,0.00015503,2]
[322916856,1713499818249,546.92,0.00015297,2]
[322916869,1713499831710,-275.02123254,0.00015504,7]
[322916870,1713499831794,-364.7,0.00015504,7]
[322916871,1713499831805,-4937.08815957,0.00015504,7]
[322916872,1713499831817,-1845.29162567,0.00015504,7]
[322916873,1713499831861,-861.87782854,0.00015504,7]
[322916874,1713499831871,-261.62382088,0.00015504,7]
[322916875,1713499831883,-629.99914214,0.00015504,7]
[322916876,1713499831892,-107.0533596,0.00015513,2]
[322916877,1713499831924,-59.91043612,0.00015513,2]
[322916878,1713499831934,-3185.07778658,0.00015613,2]
[322916879,1713499831944,-423.2,0.00015728,2]
[322916880,1713499831954,-166.96379571,0.00015755,2]
[322916881,1713499831964,-166.96379571,0.00015996,2]
[322916882,1713499831973,-504.92772526,0.00016,7]
[322916883,1713499831983,-1250.0,0.00016,2]
[322916884,1713499831992,-244.99726908,0.000161,2]
[322916885,1713499832001,-810.493,0.00016181,2]
[322916886,1713499832012,-614.812,0.00016181,2]
[322916887,1713499832022,-260.095,0.00016181,2]
[322916888,1713499832031,-1950.0,0.00016181,2]
[322916889,1713499832040,-438.364,0.00016181,2]
[322916890,1713499832049,-308.752,0.00016185,2]
[322916891,1713499832058,-215.0,0.00016185,2]
[322916892,1713499832067,-444.694,0.00016185,2]
[322916893,1713499832077,-356.929,0.00016185,2]
[322916894,1713499832086,-1824.0039,0.00016229,2]
[322916895,1713499832095,-166.96379571,0.00016238,2]
[322916896,1713499832104,-9240.6454724,0.00016238,2]
[322916897,1713499832113,-254.80354,0.0001624,2]
[322916898,1713499832122,-1000.0,0.00016268,2]
[322916899,1713499832131,-200.0,0.00016269,2]
[322916900,1713499832141,-1000.0,0.00016269,2]
[322916901,1713499832150,-200.0,0.00016269,2]
[322916902,1713499832159,-500.0,0.00016269,2]
[322916903,1713499832168,-200.0,0.00016269,2]
[322916904,1713499832177,-201.15025214,0.00016297,2]
[322916905,1713499832186,-539.12780736,0.00016297,2]
[322916906,1713499832196,-330.50722519,0.00016297,2]
[322916907,1713499832205,-155.18710395,0.00016297,2]
[322916908,1713499832214,-208.83,0.00016299,2]
[322916909,1713499832223,-42708.69444251,0.00016299,2]
[322916910,1713499832235,-72499.22920428,0.00016299,2]
[322916911,1713499832246,-393.7042918,0.00016299,2]
[322916912,1713499832259,-335.41896681,0.00016299,2]
[322916913,1713499832294,-310.0,0.00016299,2]
[322916914,1713499832306,-318.22248877,0.00016299,2]
[322916915,1713499832317,-586.85226721,0.00016299,2]
[322916916,1713499832328,-273.30050584,0.00016299,2]
[322916926,1713499837698,-340.72471905,0.00016298,2]
[322916940,1713499837816,-243.87188,0.0001589,2]
[322916942,1713499837826,-7156.17027586,0.00016298,2]
[322916944,1713499837835,-54838.28608101,0.00016299,2]
[322916946,1713499837847,-22215.58168216,0.00016299,2]
[322916948,1713499837858,-1476.94559999,0.00016299,2]
[322916958,1713499837982,-12974.1988828,0.00016299,2]
[322916959,1713499838117,-3025.050024,0.00016299,2]
[322916960,1713499838128,-311.75,0.00016299,2]
[322916964,1713499840679,-282.92247123,0.00016299,2]
[322916965,1713499840691,-747.7417,0.00016299,2]
[322917016,1713499845743,-155.30881091,0.00016297,2]
[322917017,1713499845753,-577.0721575,0.00016298,2]
[322917018,1713499845762,-1975.67587333,0.00016299,2]
[322917019,1713499845776,-2406.25955467,0.00016299,2]
[322917020,1713499845812,-1818.04,0.00016299,2]
[322917021,1713499846080,-33309.90500815,0.00016299,2]
[322917022,1713499846204,-5422.93982423,0.00016299,2]
[322917023,1713499884515,1829.817,0.00015404,2]
[322917024,1713499940155,7496.89499491,0.00015404,2]
[322917025,1713499954207,7496.89499491,0.00015404,2]
[322917026,1713499961292,152.36,0.0001611,15]
[322917027,1713499972145,7496.89499491,0.00015404,2]
[322917028,1713499978685,197.0,0.000282,120]
[322917029,1713500003864,443.79,0.00013477,2]
[322917030,1713500037063,7496.89499491,0.00013477,2]
[322917031,1713500052667,2785.10281676,0.00013477,2]
[322917033,1713500182244,496.64760187,0.00022,30]
[322917034,1713500185648,514.15,0.00015385,2]
[322917035,1713500331454,562.46,0.00015366,2]
[322917036,1713500378931,20163.2950439,0.00015366,2]
[322917037,1713500380571,440.36742313,0.00015366,2]
[322917038,1713500386855,902.05577688,0.00015366,2]
[322917039,1713500390356,942.72120691,0.00015366,2]
[322917040,1713500396881,20163.2950439,0.00015366,2]
[322917041,1713500402536,150.0,0.00015366,2]
[322917042,1713500402720,150.0,0.00015366,2]
[322917043,1713500402942,150.0,0.00015366,2]
[322917044,1713500404154,150.0,0.00015366,2]
[322917045,1713500404237,150.0,0.00015366,2]
[322917046,1713500404326,150.0,0.00015366,2]
[322917047,1713500404434,150.0,0.00015366,2]
[322917048,1713500404514,150.0,0.00015366,2]
[322917049,1713500404582,152.67403403,0.00015366,2]
[322917050,1713500408504,944.99186649,0.00015366,2]
[322917051,1713500410490,408.34885382,0.00015366,2]
[322917052,1713500418881,17196.02993786,0.00015366,2]
[322917053,1713500418908,2967.26510604,0.00015366,2]
[322917054,1713500420236,361.11089342,0.00015366,2]
[322917055,1713500424491,408.34885382,0.00015366,2]
[322917056,1713500434901,9214.5285258,0.00015366,2]
[322917057,1713500438126,1471.04911094,0.00015366,2]
[322917058,1713500438587,415.89282632,0.00015366,2]
[322917059,1713500439700,2545.09840846,0.00012,2]
[322917060,1713500446126,2989.68577385,0.00015366,2]
[322917061,1713500446706,408.34885382,0.00015366,2]
[322917062,1713500451681,365.54148364,0.00015366,2]
[322917063,1713500453375,573.35744574,0.00015366,2]
[322917064,1713500455432,1471.04911094,0.00015366,2]
[322917065,1713500456252,360.4075085,0.00015366,2]
[322917066,1713500459923,475.02478163,0.00015366,2]
[322917067,1713500460764,483.48810781,0.00015366,2]
[322917068,1713500469365,442.28,0.00013441,2]
[322917069,1713500471358,1042.89829233,0.00015366,2]
[322917070,1713500471670,10232.93822114,0.00015366,2]
[322917071,1713500471888,1471.04911094,0.00015366,2]
[322917072,1713500475314,298.71922923,0.00015366,2]
[322917073,1713500477731,7495.15446557,0.00015366,2]
[322917074,1713500494080,298.71922923,0.00015366,2]
[322917075,1713500497431,1475.82401593,0.00015366,2]
[322917076,1713500516162,298.71922923,0.00015366,2]
[322917077,1713500534359,298.71922923,0.00015366,2]
[322917078,1713500550387,298.71922923,0.00015366,2]
[322917079,1713500568350,298.71922923,0.00015366,2]
[322917081,1713500590404,298.71922923,0.00015366,2]
[322917082,1713500605210,152.36,0.0001611,15]
[322917083,1713500608824,298.71922923,0.00015366,2]
[322917084,1713500627155,298.71922923,0.00015366,2]
[322917085,1713500642754,-2000.0,0.00015588,7]
[322917086,1713500643500,-2000.0,0.00015588,7]
[322917087,1713500644000,-2000.0,0.00015588,7]
[322917088,1713500646387,-2000.0,0.00015588,7]
[322917089,1713500646730,-1175.60180934,0.00015588,7]
[322917090,1713500646752,-824.39819066,0.00015589,2]
[322917091,1713500648438,-2000.0,0.00015589,2]
[322917092,1713500649239,-2000.0,0.00015589,2]
[322917093,1713500649649,298.71922923,0.00015366,2]
[322917094,1713500650497,-2000.0,0.00015589,2]
[322917095,1713500650945,-2000.0,0.00015589,2]
[322917096,1713500651507,-2000.0,0.00015589,2]
[322917098,1713500671448,304.92616408,0.00015366,2]
[322917099,1713500687654,342.43,0.00015389,2]
[322917100,1713500778224,460.58778067,0.0002,30]
[322917101,1713500827174,16000.0,0.00015367,2]
[322917103,1713500836564,550.03,0.00015367,2]
[322917104,1713500843501,1243.91469457,0.00015366,2]
[322917107,1713500893815,195.44,0.00013699,2]
[322917108,1713500901200,4000.0,0.00015502,2]
[322917112,1713500950233,20000.0,0.00028208,120]
[322917132,1713501032451,-440.28417427,0.00015601,7]
[322917133,1713501032767,-320.53476056,0.00015601,7]
[322917134,1713501032808,-4431.34297496,0.00015601,7]
[322917135,1713501032826,-708.26288318,0.00015601,7]
[322917136,1713501033215,420.16,0.00013459,2]
[322917158,1713501038588,-3275.17701637,0.00015601,7]
[322917159,1713501038598,-12330.42062733,0.00015602,2]
[322917160,1713501038609,-7563.34065266,0.00015602,2]
[322917161,1713501038621,-275.96458678,0.00015602,2]
[322917162,1713501038633,-20696.27405096,0.00015602,2]
[322917163,1713501038642,-29087.65351044,0.00015612,2]
[322917164,1713501038652,-420.16,0.00015723,2]
[322917165,1713501038662,-12347.1963557,0.00016,2]
[322917166,1713501038671,-150.0,0.00016,2]
[322917167,1713501038681,-150.0,0.00016,2]
[322917168,1713501038691,-150.0,0.00016,2]
[322917169,1713501038700,-155.0,0.00016,2]
[322917170,1713501038716,-164.0,0.0001603,2]
[322917171,1713501038725,-150.0,0.00016083,2]
[322917172,1713501038735,-150.0,0.000161,2]
[322917173,1713501038744,-150.0,0.000161,2]
[322917174,1713501038754,-609.16783,0.0001614,2]
[322917175,1713501038763,-127177.4294686,0.000162,2]
[322917176,1713501038773,-3554.83333594,0.00016228,2]
[322917177,1713501038782,-7926.61505165,0.00016228,2]
[322917178,1713501038791,-41528.8702,0.00016229,2]
[322917179,1713501038800,-64185.5548,0.00016229,2]
[322917180,1713501038810,-48154.45059443,0.00016238,2]
[322917181,1713501038819,-200.0,0.00016269,2]
[322917182,1713501038829,-1000.0,0.00016269,2]
[322917183,1713501038838,-205.906415,0.00016269,2]
[322917184,1713501038951,-500.0,0.00016269,2]
[322917185,1713501038966,-200.0,0.00016269,2]
[322917186,1713501038976,-3734.908,0.000163,2]
[322917187,1713501038985,-677.29309221,0.000163,2]
[322917188,1713501038995,-3654.319,0.00016328,2]
[322917189,1713501039005,-181.04995257,0.00016338,2]
[322917190,1713501039014,-19907.46187561,0.00016338,2]
[322917191,1713501039023,-480.30023877,0.00016338,2]
[322917192,1713501039034,-792.77533308,0.00016338,2]
[322917193,1713501039044,-6535.97164778,0.00016338,2]
[322917194,1713501039053,-171.6550686,0.00016338,2]
[322917195,1713501039066,-677.29309217,0.00016384,2]
[322917196,1713501039075,-3616.084,0.00016391,2]
[322917197,1713501039085,-4605.52036207,0.00016399,2]
[322917198,1713501039094,-6328.7901844,0.00016399,2]
[322917199,1713501039104,-4652.4254345,0.00016399,2]
[322917200,1713501039114,-71519.021,0.00016399,2]
[322917201,1713501039123,-11708.3518684,0.00016399,2]
[322917202,1713501039132,-25865.2568193,0.00016399,2]
[322917203,1713501039141,-3610.138,0.000164,2]
[322917204,1713501039155,-129232.88403159,0.000164,3]
[322917205,1713501039165,-201.6488669,0.000164,2]
[322917206,1713501039174,-2040.0,0.000164,2]
[322917207,1713501039183,-5000.0,0.000164,2]
[322917208,1713501039192,-4999.99,0.000164,2]
[322917209,1713501039201,-4999.98,0.000164,2]
[322917210,1713501039214,-4999.98,0.000164,2]
[322917211,1713501039223,-5000.0,0.0001641,2]
[322917212,1713501039232,-5000.0,0.0001642,2]
[322917213,1713501039242,-160.28,0.00016428,2]
[322917214,1713501039251,-2934.14,0.0001643,2]
[322917215,1713501039260,-200.2042692,0.00016435,2]
[322917216,1713501039269,-155.37742637,0.00016436,2]
[322917217,1713501039278,-262.75491139,0.00016436,2]
[322917218,1713501039290,-2289.55304568,0.00016436,2]
[322917219,1713501039300,-310.0910447,0.00016436,2]
[322917220,1713501039309,-157.8825257,0.00016436,2]
[322917221,1713501039318,-521.42925863,0.00016436,2]
[322917222,1713501039327,-2892.02850822,0.00016436,2]
[322917223,1713501039336,-155.38695018,0.00016436,2]
[322917224,1713501039345,-157.041912,0.00016436,2]
[322917225,1713501039355,-157.041912,0.00016436,2]
[322917226,1713501039364,-157.041912,0.00016436,2]
[322917227,1713501039374,-157.041912,0.00016436,2]
[322917228,1713501039385,-155.63247054,0.00016436,2]
[322917229,1713501039394,-265.49296366,0.00016436,2]
[322917230,1713501039404,-234.76780342,0.00016436,2]
[322917231,1713501039413,-1135.15609734,0.00016436,2]
[322917232,1713501039423,-155.82882122,0.00016436,2]
[322917233,1713501039432,-155.71909859,0.00016436,2]
[322917234,1713501039442,-158.00865528,0.00016436,2]
[322917235,1713501039451,-482.67859214,0.00016436,2]
[322917236,1713501039463,-186.1300807,0.00016436,2]
[322917237,1713501039473,-157.041912,0.00016437,2]
[322917238,1713501039482,-157.041912,0.00016437,2]
[322917239,1713501039492,-157.041912,0.00016437,2]
[322917240,1713501039502,-157.041912,0.00016437,2]
[322917241,1713501039512,-157.041912,0.00016437,2]
[322917242,1713501039522,-204.041912,0.00016437,2]
[322917243,1713501039532,-150.01,0.00016437,2]
[322917244,1713501039541,-507.01878287,0.00016437,2]
[322917245,1713501039551,-14533.28181367,0.00016437,2]
[322917246,1713501039560,-525.0,0.00016438,2]
[322917247,1713501039570,-500.0,0.00016438,2]
[322917248,1713501039579,-500.0,0.00016438,2]
[322917249,1713501039589,-500.0,0.00016438,2]
[322917250,1713501039599,-500.65411881,0.00016438,2]
[322917251,1713501039608,-500.0,0.00016438,2]
[322917252,1713501039618,-501.06726626,0.00016438,2]
[322917253,1713501039627,-500.0,0.00016438,2]
[322917254,1713501039637,-500.0,0.00016438,2]
[322917255,1713501039646,-388.89138904,0.00016438,2]
[322917256,1713501039655,-500.0,0.00016438,2]
[322917257,1713501039665,-500.0,0.00016438,2]
[322917258,1713501039675,-500.0,0.00016438,2]
[322917259,1713501039684,-501.15586273,0.00016438,2]
[322917260,1713501039693,-500.0,0.00016438,2]
[322917261,1713501039702,-500.0,0.00016438,2]
[322917262,1713501039714,-500.0,0.00016438,2]
[322917263,1713501039724,-500.0,0.00016438,2]
[322917264,1713501039732,-302.46482719,0.00016438,2]
[322917265,1713501039741,-500.0,0.00016438,2]
[322917266,1713501039751,-500.0,0.00016438,2]
[322917267,1713501039760,-500.0,0.00016438,2]
[322917268,1713501039770,-161.8155909,0.00016438,2]
[322917269,1713501039779,-500.0,0.00016438,2]
[322917270,1713501039789,-500.0,0.00016438,2]
[322917271,1713501039798,-500.0,0.00016438,2]
[322917272,1713501039808,-496.66016688,0.00016438,2]
[322917273,1713501039817,-213.63281724,0.00016438,2]
[322917274,1713501039827,-500.0,0.00016438,2]
[322917275,1713501039836,-501.35309387,0.00016438,2]
[322917276,1713501039845,-500.0,0.00016438,2]
[322917277,1713501039855,-500.0,0.00016438,2]
[322917278,1713501039864,-500.0,0.00016438,2]
[322917279,1713501039874,-500.0,0.00016438,2]
[322917280,1713501039883,-500.0,0.00016438,2]
[322917281,1713501039893,-500.0,0.00016438,2]
[322917282,1713501039903,-164.14706148,0.00016438,2]
[322917283,1713501039912,-500.0,0.00016438,2]
[322917284,1713501039921,-500.0,0.00016438,2]
[322917285,1713501039930,-500.0,0.00016438,2]
[322917286,1713501039940,-500.0,0.00016438,2]
[322917287,1713501039949,-500.0,0.00016438,2]
[322917288,1713501039961,-500.0,0.00016438,2]
[322917289,1713501039970,-500.0,0.00016438,2]
[322917290,1713501039978,-500.0,0.00016438,2]
[322917291,1713501039987,-500.0,0.00016438,2]
[322917292,1713501039996,-500.0,0.00016438,2]
[322917293,1713501040005,-500.15831658,0.00016438,2]
[322917294,1713501040014,-500.0,0.00016438,2]
[322917295,1713501040024,-500.0,0.00016438,2]
[322917296,1713501040034,-500.0,0.00016438,2]
[322917297,1713501040043,-500.11112978,0.00016438,2]
[322917298,1713501040052,-500.06039342,0.00016438,2]
[322917299,1713501040063,-500.0,0.00016438,2]
[322917300,1713501040072,-500.0,0.00016438,2]
[322917301,1713501040082,-500.0,0.00016438,2]
[322917302,1713501040091,-500.0,0.00016438,2]
[322917303,1713501040100,-500.0,0.00016438,2]
[322917304,1713501040110,-500.0,0.00016438,2]
[322917305,1713501040119,-500.0,0.00016438,2]
[322917306,1713501040128,-500.07485068,0.00016438,2]
[322917307,1713501040137,-500.53873691,0.00016438,2]
[322917308,1713501040146,-500.0,0.00016438,2]
[322917309,1713501040155,-500.0,0.00016438,2]
[322917310,1713501040165,-500.0,0.00016438,2]
[322917311,1713501040173,-629.02976856,0.00016438,2]
[322917312,1713501040183,-500.0,0.00016438,2]
[322917313,1713501040192,-514.68,0.00016438,2]
[322917314,1713501040201,-500.0,0.00016438,2]
[322917315,1713501040212,-955.49,0.00016438,2]
[322917316,1713501040221,-500.0,0.00016438,2]
[322917317,1713501040230,-500.0,0.00016438,2]
[322917318,1713501040239,-500.0,0.00016438,2]
[322917319,1713501040249,-500.0,0.00016438,2]
[322917320,1713501040258,-500.0,0.00016438,2]
[322917321,1713501040267,-500.0,0.00016438,2]
[322917323,1713501040276,-500.0,0.00016438,2]
[322917324,1713501040285,-500.0,0.00016438,2]
[322917326,1713501040295,-500.0,0.00016438,2]
[322917328,1713501040304,-1029.56,0.00016438,2]
[322917330,1713501040315,-1029.56,0.00016438,2]
[322917331,1713501040324,-1029.56,0.00016438,2]
[322917332,1713501040333,-1029.56,0.00016438,2]
[322917333,1713501040342,-1029.56,0.00016438,2]
[322917334,1713501040351,-1029.56,0.00016438,2]
[322917335,1713501040360,-1029.56,0.00016438,2]
[322917336,1713501040369,-1029.56,0.00016438,2]
[322917337,1713501040378,-1029.56,0.00016438,2]
[322917338,1713501040387,-653.56,0.00016438,2]
[322917339,1713501040396,-1029.56,0.00016438,2]
[322917340,1713501040405,-1029.56,0.00016438,2]
[322917341,1713501040413,-1029.56,0.00016438,2]
[322917342,1713501040422,-228.69591874,0.00016438,2]
[322917343,1713501040431,-1029.56,0.00016438,2]
[322917344,1713501040440,-500.0,0.00016438,2]
[322917345,1713501040450,-500.0,0.00016438,2]
[322917346,1713501040463,-500.0,0.00016438,2]
[322917347,1713501040473,-1474.54,0.00016438,2]
[322917348,1713501040483,-1038.32,0.00016438,2]
[322917349,1713501040492,-660.16,0.00016438,2]
[322917350,1713501040502,-500.0,0.00016438,2]
[322917351,1713501040511,-500.0,0.00016438,2]
[322917352,1713501040520,-500.0,0.00016438,2]
[322917353,1713501040530,-985.98,0.00016438,2]
[322917354,1713501040538,-500.0,0.00016438,2]
[322917355,1713501040547,-500.0,0.00016438,2]
[322917356,1713501040557,-1242.61,0.00016438,2]
[322917357,1713501040565,-584.67,0.00016438,2]
[322917358,1713501040574,-797.44,0.00016438,2]
[322917359,1713501040584,-1428.0,0.00016438,2]
[322917360,1713501040593,-1182.52,0.00016438,2]
[322917361,1713501040602,-500.0,0.00016438,2]
[322917362,1713501040611,-900.72,0.00016438,2]
[322917363,1713501040620,-500.0,0.00016438,2]
[322917364,1713501040629,-500.0,0.00016438,2]
[322917365,1713501040638,-2373.5,0.00016438,2]
[322917366,1713501040647,-1168.43,0.00016438,2]
[322917367,1713501040655,-500.0,0.00016438,2]